bitfinex-derivatives/quotes_BTCF0:USTF0_20250902
["timestamp","ask_amount","ask_price","bid_price","bid_amount"]
[1756780809573,1.53159478,109610.0,109600.0,0.28476383]
[1756780810272,1.53159478,109610.0,109600.0,0.31972383]
[1756780811675,1.53159478,109610.0,109600.0,0.08222]
[1756780811872,1.53159478,109610.0,109600.0,0.31972383]
[1756780812066,0.18129095,109610.0,109600.0,0.93289766]
[1756780812261,0.18129095,109610.0,109600.0,1.18289766]
[1756780812262,0.11876095,109610.0,109600.0,1.18289766]
[1756780812466,0.11876095,109610.0,109600.0,1.82163599]
[1756780812467,0.09832741,109610.0,109600.0,1.82163599]
[1756780812670,0.01832741,109610.0,109600.0,1.8123664]
[1756780812868,0.01832741,109610.0,109600.0,2.6647664]
[1756780813167,0.01832741,109610.0,109600.0,2.68476093]
[1756780814380,0.01832741,109610.0,109600.0,1.97224944]
[1756780814580,0.01832741,109610.0,109600.0,2.68476093]
[1756780815973,0.01832741,109610.0,109600.0,2.4472571]
[1756780817876,0.01832741,109610.0,109600.0,2.1372571]
[1756780818468,0.01832741,109610.0,109600.0,2.40529219]
[1756780823178,0.01832741,109610.0,109600.0,2.47074275]
[1756780823782,0.01832741,109610.0,109600.0,1.99573509]
[1756780823982,0.01832741,109610.0,109600.0,2.47046275]
[1756780824888,0.06182,109620.0,109610.0,0.03496]
[1756780825184,0.06182,109620.0,109610.0,0.68136383]
[1756780825185,0.41182,109620.0,109610.0,0.68136383]
[1756780825982,0.41282,109620.0,109610.0,0.68136383]
[1756780826184,0.41382,109620.0,109610.0,0.68136383]
[1756780827578,0.41382,109620.0,109610.0,0.44386]
[1756780827775,0.41382,109620.0,109610.0,0.68136383]
[1756780828477,0.41382,109620.0,109610.0,0.44386]
[1756780828677,0.6695785,109620.0,109610.0,0.0481]
[1756780828877,0.6695785,109620.0,109610.0,0.32056383]
[1756780829485,0.6695785,109620.0,109610.0,0.28560383]
[1756780829681,0.6695785,109620.0,109610.0,0.32056383]
[1756780830084,2.00904233,109620.0,109610.0,0.08306]
[1756780830295,0.06182,109610.0,109600.0,0.34055836]
[1756780830583,0.67932383,109610.0,109600.0,0.34055836]
[1756780830987,1.29012383,109610.0,109600.0,0.0246]
[1756780831179,0.05726,109600.0,109590.0,0.09005056]
[1756780831375,0.90226766,109600.0,109590.0,0.0481]
[1756780831677,2.39362401,109600.0,109570.0,0.10041056]
[1756780831884,0.03374,109580.0,109570.0,0.08306]
[1756780832069,0.6113454,109580.0,109570.0,0.08306]
[1756780832985,0.6205973,109580.0,109570.0,0.08706]
[1756780833180,0.6311473,109580.0,109570.0,0.08706]
[1756780833584,0.6301473,109580.0,109570.0,0.08706]
[1756780833969,0.6208954,109580.0,109570.0,0.08706]
[1756780834374,0.6208954,109580.0,109570.0,0.09006]
[1756780835183,0.6208954,109580.0,109570.0,0.08706]
[1756780835686,0.3924681,109580.0,109570.0,0.08306]
[1756780835983,0.38329,109580.0,109570.0,0.08306]
[1756780839876,1.23537,109580.0,109570.0,0.08306]
[1756780840078,0.38329,109580.0,109570.0,0.3206654]
[1756780840377,0.91085409,109590.0,109580.0,0.08668]
[1756780840578,0.99085409,109590.0,109580.0,0.44748]
[1756780840781,0.99085409,109590.0,109580.0,0.6850854]
[1756780841680,0.99185409,109590.0,109580.0,0.6850854]
[1756780841979,0.14081409,109590.0,109580.0,0.6850854]
[1756780842184,0.11599409,109590.0,109580.0,0.9350854]
[1756780842379,0.02072409,109590.0,109580.0,0.9350854]
[1756780843084,0.03599409,109590.0,109580.0,0.9350854]
[1756780844188,0.03599409,109590.0,109580.0,0.69748]
[1756780844378,0.03599409,109590.0,109580.0,0.94442529]
[1756780844578,0.02072409,109590.0,109580.0,0.94442529]
[1756780846988,0.02072409,109590.0,109580.0,0.70681989]
[1756780847288,0.05126409,109590.0,109580.0,0.94442529]
[1756780847885,0.06081409,109590.0,109580.0,0.9350854]
[1756780848085,0.39081409,109590.0,109580.0,0.08668]
[1756780848288,1.73041949,109590.0,109580.0,0.04945]
[1756780848490,0.04009,109580.0,109570.0,0.44748]
[1756780848690,0.04009,109580.0,109570.0,0.08668]
[1756780848889,0.2776954,109580.0,109570.0,0.08668]
[1756780849190,0.5976954,109580.0,109570.0,0.08668]
[1756780849391,0.36009,109580.0,109570.0,0.08668]
[1756780850894,0.5976954,109580.0,109570.0,0.08668]
[1756780851096,0.36009,109580.0,109570.0,0.08668]
[1756780851394,0.5976954,109580.0,109570.0,0.04945]
[1756780851593,0.5976954,109580.0,109570.0,0.02463]
[1756780852593,0.04009,109570.0,109560.0,0.4681118]
[1756780853095,0.00955,109570.0,109560.0,0.7057172]
[1756780853395,0.89205,109580.0,109570.0,0.08668]
[1756780853590,0.00955,109570.0,109560.0,0.44848]
[1756780853792,0.6276954,109570.0,109560.0,0.45048]
[1756780854097,0.04009,109570.0,109560.0,0.45048]
[1756780854293,0.6384954,109570.0,109560.0,0.05245]
[1756780854496,0.6384954,109570.0,109560.0,0.05145]
[1756780854697,0.7084954,109570.0,109560.0,0.08868]
[1756780855497,0.40089,109570.0,109560.0,0.08868]
[1756780855790,0.50089,109570.0,109560.0,0.08868]
[1756780856196,0.50089,109570.0,109560.0,0.08968]
[1756780856398,0.50996366,109570.0,109560.0,0.08968]
[1756780857807,0.53823433,109570.0,109560.0,0.003]
[1756780857997,1.04583973,109570.0,109560.0,0.003]
[1756780858296,1.04583973,109570.0,109560.0,0.02763]
[1756780858496,1.04583973,109570.0,109560.0,0.05245]
[1756780858997,1.04583973,109570.0,109560.0,0.08968]
[1756780859501,0.75583973,109570.0,109560.0,0.08968]
[1756780859801,0.66583973,109570.0,109560.0,0.08968]
[1756780859990,0.42823433,109570.0,109560.0,0.08968]
[1756780860296,0.41916067,109570.0,109560.0,0.08968]
[1756780860598,1.27368067,109570.0,109560.0,0.3272854]
[1756780860794,0.01827067,109570.0,109560.0,1.5156908]
[1756780860995,0.01827067,109570.0,109560.0,1.5056908]
[1756780861195,0.03354067,109570.0,109560.0,0.9380854]
[1756780861893,0.01827067,109570.0,109560.0,0.9380854]
[1756780862094,0.05836067,109570.0,109560.0,0.45048]
[1756780862294,0.05836067,109570.0,109560.0,0.08968]
[1756780863996,0.29596607,109570.0,109560.0,0.05245]
[1756780864302,0.02749,109560.0,109550.0,0.04979]
[1756780864598,0.9658954,109560.0,109550.0,0.04979]
[1756780865202,0.9658954,109560.0,109550.0,0.00034]
[1756780865397,0.9658954,109560.0,109550.0,0.02475]
[1756780865795,0.9658954,109560.0,109550.0,0.05028]
[1756780865996,0.9658954,109560.0,109550.0,0.05228]
[1756780866604,0.9658954,109560.0,109550.0,0.02875]
[1756780866798,0.9658954,109560.0,109550.0,0.05228]
[1756780867204,0.9658954,109560.0,109550.0,0.00434]
[1756780867503,0.9658954,109560.0,109550.0,0.02875]
[1756780868299,0.9658954,109560.0,109550.0,0.00434]
[1756780868694,0.88889,109560.0,109550.0,0.10321]
[1756780869090,0.88921,109560.0,109550.0,0.3408154]
[1756780869295,0.88921,109560.0,109550.0,0.10321]
[1756780871100,0.88921,109560.0,109550.0,0.05228]
[1756780871302,0.88921,109560.0,109550.0,0.0896]
[1756780874602,1.1268154,109560.0,109550.0,0.0896]
[1756780876807,1.1268154,109560.0,109550.0,0.05228]
[1756780877009,1.1268154,109560.0,109550.0,0.0896]
[1756780878802,1.1266554,109560.0,109550.0,0.0896]
[1756780879004,0.88905,109560.0,109550.0,0.05228]
[1756780879200,0.88905,109560.0,109550.0,0.0896]
[1756780879901,0.88869,109560.0,109550.0,0.0896]
[1756780881007,0.02749,109560.0,109550.0,0.10321]
[1756780881311,0.02749,109560.0,109550.0,0.9516154]
[1756780883103,0.02749,109560.0,109550.0,0.71401]
[1756780883304,0.02749,109560.0,109550.0,0.9516154]
[1756780883508,0.02749,109560.0,109550.0,0.71401]
[1756780883705,0.02749,109560.0,109550.0,0.9516154]
[1756780885624,1.26664067,109570.0,109560.0,0.08526]
[1756780885913,1.60701758,109570.0,109560.0,0.3228654]
[1756780886408,1.58664067,109570.0,109560.0,0.3228654]
[1756780886616,0.90584067,109570.0,109560.0,0.08526]
[1756780886806,0.90584067,109570.0,109560.0,0.3228654]
[1756780887010,0.90584067,109570.0,109560.0,0.3238654]
[1756780887206,0.01827067,109570.0,109560.0,0.9346654]
[1756780887414,0.01827067,109570.0,109560.0,1.00011596]
[1756780887916,0.01827067,109570.0,109560.0,1.00111596]
[1756780888306,0.02482067,109570.0,109560.0,1.00111596]
[1756780888508,0.02482067,109570.0,109560.0,1.00567596]
[1756780888708,0.02482067,109570.0,109560.0,1.01461021]
[1756780889016,0.00655,109570.0,109560.0,1.03502797]
[1756780889216,0.01047,109570.0,109560.0,0.99770797]
[1756780889515,0.02749,109570.0,109560.0,1.02609372]
[1756780890010,0.02094,109570.0,109560.0,1.02609372]
[1756780890513,0.01047,109570.0,109560.0,1.02609372]
[1756780891217,0.01047,109570.0,109560.0,1.00567596]
[1756780891516,0.02094,109570.0,109560.0,1.24332892]
[1756780891708,0.01047,109570.0,109560.0,1.24332892]
[1756780891912,0.44198405,109580.0,109560.0,1.25229161]
[1756780892112,1.67252405,109580.0,109570.0,0.32288918]
[1756780892816,1.91015323,109580.0,109570.0,0.32288918]
[1756780893719,1.54935323,109580.0,109570.0,0.32288918]
[1756780894514,1.55035323,109580.0,109570.0,0.32288918]
[1756780895120,1.31272405,109580.0,109570.0,0.32288918]
[1756780895614,1.55035323,109580.0,109570.0,0.32288918]
[1756780901526,1.31272405,109580.0,109570.0,0.32288918]
[1756780901822,1.55035323,109580.0,109570.0,0.32288918]
[1756780902023,0.45312405,109580.0,109570.0,0.32288918]
[1756780902217,0.96000405,109580.0,109570.0,0.32288918]
[1756780902717,0.01147,109580.0,109570.0,1.55131836]
[1756780902916,0.001,109580.0,109570.0,1.23676892]
[1756780903321,0.001,109580.0,109570.0,2.47356892]
[1756780904516,0.001,109580.0,109570.0,1.17131836]
[1756780904717,0.00755,109580.0,109570.0,0.93368918]
[1756780904917,0.02849,109580.0,109570.0,0.93368918]
[1756780906822,0.02849,109580.0,109570.0,0.93824918]
[1756780909131,0.01147,109580.0,109570.0,0.93824918]
[1756780909325,0.001,109580.0,109570.0,0.93824918]
[1756780909628,0.01147,109580.0,109570.0,0.93824918]
[1756780911437,0.001,109580.0,109570.0,1.28824918]
[1756780911723,0.001,109580.0,109570.0,1.31824918]
[1756780911918,0.001,109580.0,109570.0,1.28824918]
[1756780913128,0.001,109580.0,109570.0,0.95824918]
[1756780913329,0.001,109580.0,109570.0,0.93824918]
[1756780915627,0.001,109580.0,109570.0,1.79224918]
[1756780916824,0.001,109580.0,109570.0,1.85769974]
[1756780918034,0.02849,109580.0,109570.0,1.00369974]
[1756780918243,0.26611918,109580.0,109570.0,1.00369974]
[1756780918624,0.02849,109580.0,109570.0,1.00369974]
[1756780918834,0.001,109580.0,109570.0,1.00369974]
[1756780919029,0.75374836,109580.0,109570.0,0.15527056]
[1756780919335,1.20454836,109580.0,109570.0,0.08982]
[1756780919533,1.20454836,109580.0,109570.0,0.00456]
[1756780920330,1.47514049,109580.0,109570.0,0.00456]
[1756780920634,1.85336213,109580.0,109570.0,0.08605]
[1756780920934,2.32862049,109580.0,109570.0,0.08605]
[1756780921334,2.32862049,109580.0,109570.0,0.02799]
[1756780921530,2.32862049,109580.0,109570.0,0.00456]
[1756780921531,2.40902074,109580.0,109570.0,0.00456]
[1756780923636,2.40926074,109580.0,109570.0,0.00456]
[1756780925926,2.38866861,109580.0,109570.0,0.00456]
[1756780927340,1.53494861,109580.0,109570.0,0.05256]
[1756780927638,2.38822861,109580.0,109570.0,0.05256]
[1756780931643,2.38822861,109580.0,109570.0,0.02934]
[1756780934640,2.38818861,109580.0,109570.0,0.05391]
[1756780936949,1.53494861,109580.0,109570.0,0.05391]
[1756780937246,2.38818861,109580.0,109570.0,0.05391]
[1756780942344,2.40876591,109580.0,109570.0,0.05391]
[1756780942546,2.40876591,109580.0,109570.0,0.02934]
[1756780943349,1.93350755,109580.0,109570.0,0.05391]
[1756780943648,2.40876591,109580.0,109570.0,0.05391]
[1756780943848,2.38818861,109580.0,109570.0,0.05391]
[1756780944240,1.04731943,109580.0,109570.0,0.32657918]
[1756780944442,1.90047943,109580.0,109570.0,0.32657918]
[1756780944649,2.13810861,109580.0,109570.0,0.32657918]
[1756780944838,1.66285025,109580.0,109570.0,0.32657918]
[1756780945042,2.13810861,109580.0,109570.0,0.32657918]
[1756780945651,1.28494861,109580.0,109570.0,0.32657918]
[1756780945944,1.92112984,109580.0,109570.0,0.32657918]
[1756780947247,2.15875902,109580.0,109570.0,0.05391]
[1756780947553,2.15875902,109580.0,109570.0,0.08895]
[1756780947854,2.15875902,109580.0,109570.0,0.05391]
[1756780951060,2.15875902,109580.0,109570.0,0.08895]
[1756780951553,1.92117798,109580.0,109570.0,0.08895]
[1756780951850,1.92117798,109580.0,109570.0,0.05391]
[1756780953448,1.92117798,109580.0,109570.0,0.08895]
[1756780953649,1.68350066,109580.0,109570.0,0.08895]
[1756780953843,1.92117798,109580.0,109570.0,0.08895]
[1756780954146,1.92117798,109580.0,109570.0,0.05391]
[1756780954345,1.92117798,109580.0,109570.0,0.08895]
[1756780956547,1.92117798,109580.0,109570.0,0.93742732]
[1756780956548,0.46954066,109580.0,109570.0,0.93742732]
[1756780957047,1.32254066,109580.0,109570.0,0.93742732]
[1756780957554,0.95096,109580.0,109570.0,1.00287788]
[1756780958553,0.95096,109580.0,109570.0,1.32287788]
[1756780958753,0.94896,109580.0,109570.0,1.02287788]
[1756780958952,0.94896,109580.0,109570.0,1.00287788]
[1756780959154,0.94796,109580.0,109570.0,1.00287788]
[1756780960149,0.095,109580.0,109570.0,1.00287788]
[1756780960554,0.095,109580.0,109570.0,1.37207177]
[1756780960751,0.095,109580.0,109570.0,1.01207177]
[1756780960952,0.095,109580.0,109570.0,1.33207177]
[1756780961149,0.095,109580.0,109570.0,1.34207177]
[1756780961953,0.094,109580.0,109570.0,1.37207177]
[1756780962158,0.094,109580.0,109570.0,1.03207177]
[1756780962646,0.093,109580.0,109570.0,1.03207177]
[1756780963154,0.093,109580.0,109570.0,1.01207177]
[1756780964753,0.093,109580.0,109570.0,0.94662121]
[1756780967463,0.10347,109580.0,109570.0,0.94662121]
[1756780968662,0.093,109580.0,109570.0,0.94662121]
[1756780969060,0.10347,109580.0,109570.0,0.94662121]
[1756780969461,0.093,109580.0,109570.0,0.94662121]
[1756780971760,0.10347,109580.0,109570.0,0.94662121]
[1756780973461,0.10347,109580.0,109570.0,0.93742732]
[1756780974565,0.01347,109580.0,109570.0,0.93742732]
[1756780976758,0.003,109580.0,109570.0,0.93742732]
[1756780977875,0.003,109580.0,109570.0,1.25742732]
[1756780978062,0.003,109580.0,109570.0,1.01975]
[1756780978364,0.003,109580.0,109570.0,1.27742732]
[1756780978664,0.003,109580.0,109570.0,0.95742732]
[1756780979164,0.003,109580.0,109570.0,0.70742732]
[1756780979363,0.003,109580.0,109570.0,0.68742732]
[1756780979966,0.003,109580.0,109570.0,1.53978732]
[1756780980156,0.003,109580.0,109570.0,0.68742732]
[1756780980356,0.003,109580.0,109570.0,1.53974732]
[1756780983863,0.003,109580.0,109570.0,1.17894732]
[1756780984060,0.003,109580.0,109570.0,1.53974732]
[1756780987872,0.003,109580.0,109570.0,1.30207]
[1756780988068,0.003,109580.0,109570.0,1.53974732]
[1756780989975,0.003,109580.0,109570.0,1.30207]
[1756780990178,0.003,109580.0,109570.0,1.53974732]
[1756780990366,0.003,109580.0,109570.0,1.60519788]
[1756780990567,0.003,109580.0,109570.0,1.86974732]
[1756780990769,0.3608,109600.0,109590.0,0.0852]
[1756780990975,0.7108,109600.0,109590.0,0.32287732]
[1756780991477,0.35,109600.0,109590.0,0.68367732]
[1756780991776,0.35,109600.0,109590.0,0.70430446]
[1756780991976,0.352,109600.0,109590.0,0.70430446]
[1756780992164,0.352,109600.0,109590.0,0.70886446]
[1756780993075,0.354,109600.0,109590.0,0.70886446]
[1756780994179,0.354,109600.0,109590.0,0.94654178]
[1756780994872,0.354,109600.0,109590.0,1.01213362]
[1756780995071,0.004,109600.0,109590.0,1.01213362]
[1756780995668,0.004,109600.0,109590.0,1.35213362]
[1756780995872,0.004,109600.0,109590.0,1.28654178]
[1756780996278,0.004,109600.0,109590.0,1.69337782]
[1756780996478,0.3608,109620.0,109610.0,0.32287732]
[1756780996680,0.7308,109620.0,109610.0,0.32287732]
[1756780996871,0.37,109620.0,109610.0,0.68367732]
[1756780997073,0.37,109620.0,109610.0,0.69271329]
[1756780997878,0.371,109620.0,109610.0,0.69271329]
[1756780998479,0.372,109620.0,109610.0,0.69271329]
[1756781000982,0.002,109620.0,109610.0,1.62161821]
[1756781002082,0.002,109620.0,109610.0,1.53039061]
[1756781002284,0.002,109620.0,109610.0,2.38195061]
[1756781003686,0.002,109620.0,109610.0,2.38187061]
[1756781004185,0.002,109620.0,109610.0,1.53039061]
[1756781004386,0.002,109620.0,109610.0,2.38183061]
[1756781004587,0.001,109620.0,109610.0,2.38283061]
[1756781005585,0.001,109620.0,109610.0,2.47405821]
[1756781006385,0.05710294,109640.0,109630.0,0.02409]
[1756781006582,0.41117294,109640.0,109630.0,0.32287732]
[1756781007590,0.40327,109640.0,109630.0,0.32287732]
[1756781007980,0.40427,109640.0,109630.0,0.32287732]
[1756781008588,0.40427,109640.0,109630.0,0.68367732]
[1756781008790,0.65427,109640.0,109630.0,0.68367732]
[1756781011981,0.65427,109640.0,109630.0,0.446]
[1756781012292,0.65427,109640.0,109630.0,0.32287732]
[1756781013294,0.65427,109640.0,109630.0,0.32743732]
[1756781013495,0.65427,109640.0,109630.0,0.32710047]
[1756781016090,0.64161047,109640.0,109630.0,0.29091047]
[1756781016790,1.48975094,109640.0,109630.0,0.00456]
[1756781016981,1.5084472,109640.0,109630.0,0.00456]
[1756781021697,1.6105592,109640.0,109630.0,0.00456]
[1756781022199,1.6310963,109640.0,109630.0,0.00456]
[1756781024992,1.39375583,109640.0,109630.0,0.32370047]
[1756781025192,2.24443583,109640.0,109630.0,0.32370047]
[1756781025390,2.24443583,109640.0,109630.0,0.28867047]
[1756781026094,1.39375583,109640.0,109630.0,0.28867047]
[1756781026400,1.99439583,109640.0,109630.0,0.32370047]
[1756781026600,1.99445867,109640.0,109630.0,0.32370047]
[1756781027899,1.99441867,109640.0,109630.0,0.32370047]
[1756781028097,1.7570782,109640.0,109630.0,0.32370047]
[1756781028301,1.99441867,109640.0,109630.0,0.32370047]
[1756781028495,1.3962782,109640.0,109630.0,0.56104094]
[1756781028696,1.3962782,109640.0,109630.0,0.32370047]
[1756781032305,0.5456782,109640.0,109630.0,0.32370047]
[1756781032499,1.3961582,109640.0,109630.0,0.32370047]
[1756781032693,0.5456782,109640.0,109630.0,0.57370047]
[1756781032897,0.5456782,109640.0,109630.0,1.17184094]
[1756781032898,1.3961182,109640.0,109630.0,1.17184094]
[1756781033097,1.3961182,109640.0,109630.0,0.69716]
[1756781033399,1.3961182,109640.0,109630.0,1.17184094]
[1756781033905,1.3961182,109640.0,109630.0,0.93450047]
[1756781034602,1.3961182,109640.0,109630.0,0.69716]
[1756781034802,0.5456782,109640.0,109630.0,0.93450047]
[1756781035197,0.5456782,109640.0,109630.0,1.17184094]
[1756781039310,0.5456782,109640.0,109630.0,0.92184094]
[1756781040712,0.5456782,109640.0,109630.0,0.93112875]
[1756781041111,0.5456782,109640.0,109630.0,0.92184094]
[1756781041710,0.5456782,109640.0,109630.0,0.08636]
[1756781041908,0.5456782,109640.0,109630.0,0.32370047]
[1756781047307,0.9064782,109640.0,109630.0,0.32370047]
[1756781047810,0.5209882,109640.0,109630.0,0.56104094]
[1756781048010,1.3709082,109640.0,109630.0,0.92184094]
[1756781048215,1.3955982,109640.0,109630.0,0.92184094]
[1756781049418,1.39556308,109640.0,109630.0,0.32370047]
[1756781049618,1.3955633,109640.0,109630.0,0.32370047]
[1756781050218,1.37499826,109640.0,109630.0,0.32370047]
[1756781050718,1.75636404,109640.0,109630.0,0.32370047]
[1756781052215,1.73579826,109640.0,109630.0,0.32370047]
[1756781052607,1.37499826,109640.0,109630.0,0.32370047]
[1756781053221,1.37499826,109640.0,109630.0,0.38929231]
[1756781053414,1.37499826,109640.0,109630.0,0.32370047]
[1756781053718,1.04499826,109640.0,109630.0,0.32370047]
[1756781053914,1.06556338,109640.0,109630.0,0.32370047]
[1756781055724,1.06524338,109640.0,109630.0,0.32370047]
[1756781055922,1.41467826,109640.0,109630.0,0.32370047]
[1756781058025,0.49280826,109640.0,109630.0,0.32370047]
[1756781058219,0.40427766,109670.0,109630.0,1.85039271]
[1756781058411,0.04525481,109670.0,109660.0,0.71202141]
[1756781058615,0.04525481,109670.0,109660.0,0.79421141]
[1756781058616,0.96116481,109670.0,109660.0,0.79421141]
[1756781058918,0.96116481,109670.0,109660.0,0.57744563]
[1756781058919,0.311,109670.0,109660.0,0.57744563]
[1756781059618,0.313,109670.0,109660.0,0.58199563]
[1756781059926,0.313,109670.0,109660.0,1.2501361]
[1756781060119,0.313,109670.0,109660.0,1.0218551]
[1756781061513,0.415112,109670.0,109660.0,1.0218551]
[1756781063724,0.415112,109670.0,109660.0,1.8905351]
[1756781065824,0.415112,109670.0,109660.0,1.93934821]
[1756781066821,0.215112,109670.0,109660.0,1.93934821]
[1756781070027,0.175112,109670.0,109660.0,1.93934821]
[1756781071229,0.127302,109670.0,109660.0,1.93934821]
[1756781071429,0.104112,109670.0,109660.0,1.93934821]
[1756781072626,0.071,109700.0,109690.0,0.08219]
[1756781072830,0.401,109700.0,109690.0,0.75033047]
[1756781073028,0.401,109700.0,109690.0,0.76033047]
[1756781073622,0.401,109700.0,109690.0,0.75033047]
[1756781074229,0.401,109700.0,109690.0,0.51754]
[1756781074441,0.99914047,109700.0,109690.0,0.40408047]
[1756781074931,0.7648,109700.0,109690.0,0.40408047]
[1756781075235,0.7688,109700.0,109690.0,0.40408047]
[1756781075432,0.7688,109700.0,109690.0,0.40385128]
[1756781075730,0.870912,109700.0,109690.0,0.40385128]
[1756781076132,0.870912,109700.0,109690.0,0.32385128]
[1756781077034,0.870912,109700.0,109690.0,0.08674]
[1756781079033,0.870912,109700.0,109690.0,0.32385128]
[1756781080133,0.870912,109700.0,109690.0,0.08674]
[1756781080332,0.870912,109700.0,109690.0,0.32385128]
[1756781082629,1.732432,109700.0,109690.0,0.32385128]
[1756781083734,2.21954328,109700.0,109690.0,0.00455]
[1756781084131,1.982432,109700.0,109690.0,0.05122]
[1756781084336,1.120912,109700.0,109690.0,0.32248128]
[1756781084531,1.983112,109700.0,109690.0,0.32248128]
[1756781085037,1.982872,109700.0,109690.0,0.32248128]
[1756781085930,2.00264444,109700.0,109690.0,0.32248128]
[1756781087838,1.14068444,109700.0,109690.0,0.32248128]
[1756781088237,2.00144444,109700.0,109690.0,0.32248128]
[1756781088642,1.64064444,109700.0,109690.0,0.32248128]
[1756781088828,1.39064444,109700.0,109690.0,0.08537]
[1756781089034,1.39064444,109700.0,109690.0,0.32248128]
[1756781092942,1.38924444,109700.0,109690.0,0.32248128]
[1756781093436,1.38928444,109700.0,109690.0,0.32248128]
[1756781094339,1.38928444,109700.0,109690.0,0.34300878]
[1756781094535,0.52988444,109700.0,109690.0,0.34300878]
[1756781094839,0.52988444,109700.0,109690.0,0.70380878]
[1756781095136,1.38888444,109700.0,109690.0,0.70380878]
[1756781096037,1.369112,109700.0,109690.0,0.75255374]
[1756781096744,0.155422,109700.0,109690.0,1.09371624]
[1756781097044,0.180112,109700.0,109690.0,1.11371624]
[1756781097444,0.155422,109700.0,109690.0,1.11371624]
[1756781097642,0.180112,109700.0,109690.0,1.02255374]
[1756781099345,0.180112,109700.0,109690.0,0.77255374]
[1756781100239,0.180112,109700.0,109690.0,0.86371624]
[1756781100440,0.155422,109700.0,109690.0,0.86371624]
[1756781100947,0.109112,109700.0,109690.0,1.41497128]
[1756781101136,0.109112,109700.0,109690.0,1.06497128]
[1756781101336,0.109112,109700.0,109690.0,1.40497128]
[1756781101532,0.181932,109700.0,109690.0,1.92221128]
[1756781102036,0.181932,109700.0,109690.0,1.06497128]
[1756781102236,0.181932,109700.0,109690.0,1.92209128]
[1756781102532,0.132972,109700.0,109690.0,1.92209128]
[1756781102944,0.109112,109700.0,109690.0,2.25209128]
[1756781104745,0.109112,109700.0,109690.0,2.31768312]
[1756781106648,0.109112,109700.0,109690.0,1.46056312]
[1756781106845,0.109112,109700.0,109690.0,1.01940062]
[1756781107045,0.133802,109700.0,109690.0,1.87508062]
[1756781107347,0.133802,109700.0,109690.0,1.87500062]
[1756781107845,0.133802,109700.0,109690.0,1.87492062]
[1756781108242,0.133802,109700.0,109690.0,1.96608322]
[1756781109041,0.109112,109700.0,109690.0,1.96608322]
[1756781109538,0.133802,109700.0,109690.0,1.96616322]
[1756781110046,0.109112,109700.0,109690.0,1.96616322]
[1756781110247,0.109112,109700.0,109690.0,2.32616322]
[1756781112246,0.109112,109700.0,109690.0,2.07616322]
[1756781113248,0.106112,109700.0,109690.0,1.83905194]
[1756781113449,0.176042,109700.0,109690.0,0.53228934]
[1756781113653,0.176042,109700.0,109690.0,1.62464062]
[1756781113848,0.176042,109700.0,109690.0,0.53328934]
[1756781114052,0.426042,109700.0,109690.0,0.77040062]
[1756781115051,0.426042,109700.0,109690.0,0.70480878]
[1756781115247,1.126842,109700.0,109690.0,0.13733934]
[1756781115455,1.36395328,109700.0,109690.0,0.0739318]
[1756781116646,1.36495328,109700.0,109680.0,0.0488543]
[1756781116846,0.43018,109690.0,109680.0,0.0733043]
[1756781117046,0.74018,109690.0,109680.0,0.0733043]
[1756781117957,0.74018,109690.0,109680.0,0.0965943]
[1756781118352,0.74318,109690.0,109680.0,0.0733043]
[1756781118658,0.74318,109690.0,109680.0,0.0965943]
[1756781119254,0.74518,109690.0,109680.0,0.0965943]
[1756781119963,0.74418,109690.0,109680.0,0.0965943]
[1756781120259,0.846292,109690.0,109680.0,0.0965943]
[1756781120464,0.846292,109690.0,109680.0,0.36826558]
[1756781120465,0.535292,109690.0,109680.0,0.36826558]
[1756781120755,0.105112,109690.0,109680.0,0.96617686]
[1756781120956,0.105112,109690.0,109680.0,2.49177386]
[1756781121254,0.105112,109690.0,109680.0,1.63197184]
[1756781121458,0.107112,109690.0,109680.0,2.4461944]
[1756781122661,0.104112,109690.0,109680.0,2.4461944]
[1756781122862,0.105112,109690.0,109680.0,2.4461944]
[1756781123362,0.103112,109690.0,109680.0,2.1471944]
[1756781123561,0.122252,109690.0,109680.0,1.8371944]
[1756781123764,0.122252,109690.0,109680.0,1.60008312]
[1756781124153,0.122252,109690.0,109680.0,1.8371944]
[1756781124562,0.102112,109690.0,109680.0,1.8371944]
[1756781124762,0.171492,109690.0,109680.0,1.59968312]
[1756781125865,0.172492,109690.0,109680.0,1.59968312]
[1756781126467,0.172492,109690.0,109680.0,1.59868312]
[1756781127566,0.103112,109690.0,109680.0,1.8357944]
[1756781128262,0.103112,109690.0,109680.0,1.77020256]
[1756781128766,0.103112,109690.0,109680.0,2.1557944]
[1756781128962,0.103112,109690.0,109680.0,2.09020256]
[1756781129169,0.103112,109690.0,109680.0,1.29598]
[1756781129360,0.103112,109690.0,109680.0,1.77120256]
[1756781129867,0.102112,109690.0,109680.0,1.77120256]
[1756781130566,0.102112,109690.0,109680.0,2.2379657]
[1756781130762,0.102112,109690.0,109680.0,2.0867944]
[1756781131070,0.102112,109690.0,109680.0,2.4167944]
[1756781131461,0.102112,109690.0,109680.0,2.4151544]
[1756781132568,0.77860328,109690.0,109680.0,0.0833]
[1756781132773,1.152292,109690.0,109680.0,0.1321424]
[1756781133467,0.802292,109690.0,109680.0,0.1321424]
[1756781133669,1.33940328,109690.0,109680.0,0.0975824]
[1756781133863,1.34040328,109690.0,109680.0,0.0975824]
[1756781134064,1.34240328,109690.0,109680.0,0.0965824]
[1756781134865,1.106292,109690.0,109680.0,0.0965824]
[1756781135361,1.106292,109690.0,109680.0,0.0488424]
[1756781135561,1.11548989,109690.0,109680.0,0.0962024]
[1756781135769,0.85448989,109690.0,109680.0,0.1316024]
[1756781135976,0.85648989,109690.0,109680.0,0.1316024]
[1756781136573,1.17648989,109690.0,109680.0,0.1316024]
[1756781136772,1.17648989,109690.0,109680.0,0.0962024]
[1756781136980,1.41160117,109690.0,109680.0,0.0962024]
[1756781137481,1.41167106,109690.0,109680.0,0.33338357]
[1756781138080,1.41167106,109690.0,109680.0,0.36878357]
[1756781138375,2.26287106,109690.0,109680.0,0.36878357]
[1756781138581,2.26287106,109690.0,109680.0,0.3891757]
[1756781139680,1.40247317,109690.0,109680.0,0.3891757]
[1756781139881,2.25367317,109690.0,109680.0,0.3891757]
[1756781141579,1.94367317,109690.0,109680.0,0.3891757]
[1756781142483,1.95298857,109690.0,109680.0,0.3891757]
[1756781142681,0.605292,109690.0,109680.0,0.62635687]